bitfinex-derivatives/quotes_SOLF0:USTF0_20250606
["timestamp","ask_amount","ask_price","bid_price","bid_amount"]
[1749215861313,0.0459519,151.58,151.56,14.14418304]
[1749215862409,0.0459519,151.58,151.57,6.5939]
[1749215869415,0.0459519,151.58,151.57,14.14378304]
[1749215869619,0.0459519,151.58,151.57,7.54988304]
[1749215869820,0.0459519,151.58,151.55,41.15205925]
[1749215870222,0.0459519,151.58,151.56,6.5942]
[1749215870617,0.0459519,151.58,151.55,33.60217621]
[1749215870818,0.0459519,151.58,151.55,40.19657621]
[1749215871012,0.0459519,151.58,151.55,47.74645925]
[1749215871416,0.0459519,151.58,151.56,6.5942]
[1749215873421,0.0459519,151.58,151.55,40.19667621]
[1749215874322,0.0459519,151.58,151.55,33.60217621]
[1749215874524,6.6393519,151.58,151.55,33.60217621]
[1749215875328,0.0459519,151.58,151.55,33.60217621]
[1749215875726,4.76276709,151.57,151.55,0.04217621]
[1749215875924,4.76276709,151.56,151.55,0.04217621]
[1749215876227,4.76277806,151.56,151.55,0.04217621]
[1749215876425,0.0459519,151.58,151.55,0.04217621]
[1749215876622,0.0459519,151.58,151.55,6.63687621]
[1749215877020,4.76275864,151.57,151.55,6.63687621]
[1749215877224,6.6396519,151.58,151.55,0.04217621]
[1749215877426,4.75191135,151.57,151.55,0.04217621]
[1749215877734,4.75380286,151.56,151.55,0.04217621]
[1749215879635,4.75204248,151.56,151.55,6.63697621]
[1749215879827,0.0459519,151.58,151.55,6.63697621]
[1749215880032,10.05912013,151.57,151.55,0.04217621]
[1749215880234,4.75231749,151.56,151.55,0.04217621]
[1749215881733,4.73565511,151.56,151.55,0.04217621]
[1749215881924,4.73565427,151.56,151.55,0.04217621]
[1749215882838,4.73565427,151.56,151.55,6.63697621]
[1749215883032,4.73565427,151.56,151.55,0.04217621]
[1749215883842,10.03544862,151.56,151.55,0.04217621]
[1749215884232,16.62984862,151.56,151.55,0.04217621]
[1749215884739,10.03544862,151.56,151.55,0.04217621]
[1749215887944,4.72782799,151.56,151.55,0.04217621]
[1749215888741,4.72653633,151.56,151.55,0.04217621]
[1749215888941,4.72653626,151.56,151.55,0.04217621]
[1749215889141,4.72653909,151.56,151.55,0.04217621]
[1749215890042,4.72576833,151.56,151.55,0.04217621]
[1749215890238,4.72562508,151.56,151.55,0.04217621]
[1749215890536,6.6397519,151.58,151.55,0.04217621]
[1749215890740,4.72560855,151.57,151.55,0.04217621]
[1749215890946,0.0459519,151.58,151.55,0.04217621]
[1749215891142,4.72025123,151.57,151.55,0.04217621]
[1749215891343,0.0459519,151.58,151.55,0.04217621]
[1749215891537,4.72027471,151.57,151.55,0.04217621]
[1749215891837,6.6396519,151.58,151.55,0.04217621]
[1749215892339,4.71901581,151.57,151.55,0.04217621]
[1749215892540,6.6396519,151.58,151.55,0.04217621]
[1749215892734,4.71857798,151.57,151.55,0.04217621]
[1749215892938,6.6396519,151.58,151.55,0.04217621]
[1749215893138,4.71858819,151.57,151.55,0.04217621]
[1749215893333,4.71858819,151.56,151.55,0.04217621]
[1749215893744,4.71856644,151.56,151.55,6.63707621]
[1749215894046,4.71856652,151.56,151.55,0.04217621]
[1749215894639,4.71870606,151.56,151.55,0.04217621]
[1749215895748,4.71870606,151.56,151.55,6.63707621]
[1749215895749,4.71871197,151.56,151.55,6.63707621]
[1749215897145,4.71837548,151.56,151.55,6.63707621]
[1749215897541,4.71837548,151.56,151.55,0.04217621]
[1749215898547,9.57365706,151.56,151.55,0.04217621]
[1749215898748,4.85552599,151.56,151.55,0.04217621]
[1749215898949,9.57365707,151.56,151.55,0.04217621]
[1749215899248,4.85552599,151.56,151.55,0.04217621]
[1749215899449,16.16854528,151.56,151.55,0.04217621]
[1749215900348,11.44992599,151.56,151.55,0.04217621]
[1749215900548,16.16982213,151.56,151.55,0.04217621]
[1749215900743,11.44992599,151.56,151.55,0.04217621]
[1749215900950,16.17050207,151.56,151.55,0.04217621]
[1749215902148,16.16653134,151.56,151.55,0.04217621]
[1749215902348,11.44992599,151.56,151.55,0.04217621]
[1749215902543,16.16747352,151.56,151.55,0.04217621]
[1749215902739,21.46837783,151.56,151.55,0.04217621]
[1749215903453,14.87397783,151.56,151.51,0.37538]
[1749215903646,4.85552599,151.52,151.51,0.37538]
[1749215903946,9.57307352,151.52,151.51,0.37538]
[1749215904146,6.5969,151.51,151.47,11.45362599]
[1749215904352,6.64131085,151.51,151.47,11.49864528]
[1749215904752,6.64131085,151.51,151.47,6.64311929]
[1749215905147,0.04441085,151.51,151.48,6.5978]
[1749215905453,0.04441085,151.51,151.47,0.04501929]
[1749215905651,6.15432996,151.57,151.48,13.1956]
[1749215905855,6.431,151.71,151.61,7.59456559]
[1749215906148,6.591,151.64,151.59,6.593]
[1749215906543,2.1448,151.63,151.59,6.593]
[1749215906748,2.18701105,151.63,151.59,6.63859684]
[1749215906943,2.18701105,151.63,151.59,0.04559684]
[1749215909547,43.26157664,151.63,151.59,0.04559684]
[1749215910552,7.59456559,151.61,151.54,33.48]
[1749215910753,35.66701105,151.63,151.51,39.59247729]
[1749215910754,7.59456559,151.57,151.51,39.59247729]
[1749215911154,7.59456559,151.57,151.51,33.48]
[1749215911361,6.5947,151.56,151.51,6.5965]
[1749215911560,9.68516559,151.57,151.51,6.5965]
[1749215911764,0.04635428,151.55,151.52,0.04743087]
[1749215912558,0.04635428,151.55,151.52,6.64353087]
[1749215912759,0.04635428,151.55,151.52,0.04743087]
[1749215913066,0.04635428,151.55,151.52,6.64363087]
[1749215914062,0.04635428,151.55,151.53,6.5956]
[1749215914657,0.04635428,151.55,151.54,6.5953]
[1749215916960,33.46,151.61,151.53,13.70704288]
[1749215917163,33.46,151.62,151.56,7.59456559]
[1749215917566,33.46,151.62,151.58,6.5933]
[1749215917869,33.50742697,151.62,151.58,6.63656027]
[1749215918363,33.50742697,151.62,151.59,6.5933]
[1749215922965,33.50742697,151.62,151.58,6.63686027]
[1749215923263,0.04742697,151.62,151.58,6.63686027]
[1749215923467,0.04742697,151.62,151.59,6.5933]
[1749215924169,0.04742697,151.62,151.58,6.63686027]
[1749215924759,0.04742697,151.62,151.58,0.04326027]
[1749215924959,0.04742697,151.62,151.6,7.59456559]
[1749215925366,0.04742697,151.62,151.61,6.5925]
[1749215926473,0.04742697,151.62,151.6,6.5927]
[1749215926965,0.04742697,151.62,151.59,7.59456559]
[1749215927164,0.04742697,151.62,151.58,0.04326027]
[1749215928064,6.63952697,151.62,151.58,0.04326027]
[1749215929069,6.5926,151.61,151.58,0.04326027]
[1749215929468,0.04742697,151.62,151.58,0.04326027]
[1749215930061,4.43576152,151.61,151.58,0.04326027]
[1749215930271,0.04742697,151.62,151.58,0.04326027]
[1749215930465,6.5933,151.59,151.58,0.04326027]
[1749215930769,4.43590426,151.59,151.52,33.44]
[1749215930966,6.5962,151.53,151.49,41.03456559]
[1749215931464,33.44,151.57,151.49,41.03456559]
[1749215931667,6.5958,151.54,151.51,0.04505831]
[1749215931971,0.0492356,151.55,151.51,0.04505831]
[1749215932167,0.0492356,151.55,151.51,7.6396239]
[1749215932776,0.0492356,151.55,151.53,6.5956]
[1749215933368,0.0492356,151.55,151.54,6.5955]
[1749215933571,0.0492356,151.55,151.51,7.6396239]
[1749215933976,0.0492356,151.55,151.53,6.5956]
[1749215934368,0.0492356,151.55,151.53,7.59456559]
[1749215934673,0.0492356,151.55,151.54,6.5955]
[1749215938681,4.3716,151.62,151.53,41.03456559]
[1749215938883,2.178,151.62,151.58,7.59456559]
[1749215939378,2.178,151.62,151.59,6.5931]
[1749215939576,2.2212433,151.62,151.59,6.64104298]
[1749215940374,2.2212433,151.62,151.6,6.5928]
[1749215940575,2.2212433,151.62,151.59,0.04794298]
[1749215941074,2.2212433,151.62,151.59,6.64104298]
[1749215941484,2.2212433,151.62,151.59,0.04794298]
[1749215941674,0.0432433,151.62,151.6,7.59456559]
[1749215942276,0.0432433,151.62,151.61,6.5925]
[1749215942681,33.44,151.67,151.6,7.59456559]
[1749215942877,2.0678,151.68,151.63,7.59456559]
[1749215943083,4.43036749,151.67,151.63,7.59456559]
[1749215943278,2.0678,151.68,151.65,6.5904]
[1749215943783,2.11422206,151.68,151.65,0.04963864]
[1749215943981,0.04642206,151.68,151.65,7.64420423]
[1749215944178,0.04642206,151.68,151.67,7.59456559]
[1749215944579,0.04642206,151.68,151.65,0.04963864]
[1749215944985,6.5903,151.66,151.65,0.04963864]
[1749215945684,12.01821431,151.66,151.56,33.42]
[1749215945879,7.59456559,151.63,151.56,33.42]
[1749215946480,6.5937,151.59,151.58,0.04810307]
[1749215947383,6.5931,151.6,151.58,0.04810307]
[1749215947683,33.46165199,151.61,151.58,0.04810307]
[1749215948079,40.05435199,151.61,151.58,0.04810307]
[1749215948582,33.46165199,151.61,151.58,0.04810307]
[1749215949281,40.05445199,151.61,151.58,0.04810307]
[1749215950183,6.5931,151.6,151.58,0.04810307]
[1749215950789,6.5933,151.59,151.58,0.04810307]
[1749215951287,33.46165199,151.61,151.58,0.04810307]
[1749215952188,35.52275199,151.61,151.58,0.04810307]
[1749215952883,35.52275199,151.61,151.53,47.61026559]
[1749215953088,4.46034894,151.6,151.53,47.61026559]
[1749215953283,6.594,151.58,151.53,47.61026559]
[1749215953782,4.4603644,151.6,151.53,41.01456559]
[1749215953986,0.04548031,151.58,151.55,0.04697704]
[1749215954389,0.04548031,151.58,151.55,6.64177704]
[1749215955784,0.04548031,151.58,151.55,0.04697704]
[1749215956487,0.04548031,151.58,151.55,6.64197704]
[1749215956882,0.04548031,151.58,151.55,0.04697704]
[1749215957087,0.04548031,151.58,151.56,6.5944]
[1749215958190,0.04548031,151.58,151.55,6.64187704]
[1749215958490,0.04548031,151.58,151.55,14.23644263]
[1749215960994,0.04548031,151.58,151.56,6.5946]
[1749215961397,0.04548031,151.58,151.55,14.23644263]
[1749215963599,0.04548031,151.58,151.56,6.5945]
[1749215965007,0.04548031,151.58,151.57,6.5942]
[1749215971212,0.04548031,151.58,151.57,14.18876559]
[1749215973114,0.04548031,151.58,151.56,6.5944]
[1749215976516,0.04548031,151.58,151.57,6.5942]
[1749215977915,0.04548031,151.58,151.55,0.04697704]
[1749215977916,0.04548031,151.58,151.56,6.5944]
[1749215978112,0.04548031,151.58,151.55,0.04697704]
[1749215978512,0.04548031,151.58,151.57,6.5942]
[1749215980811,8.7036,151.63,151.59,6.593]
[1749215981018,2.73220847,151.62,151.58,7.58133934]
[1749215981218,4.45197897,151.63,151.58,7.58133934]
[1749215981518,2.73220204,151.62,151.6,6.5926]
[1749215981713,2.73220204,151.61,151.6,6.5926]
[1749215982420,0.04810293,151.62,151.6,6.5926]
[1749215982608,2.7321931,151.61,151.59,6.6403425]
[1749215982812,2.7321931,151.6,151.59,6.6403425]
[1749215983718,0.04810293,151.62,151.6,6.5927]
[1749215983909,2.73243882,151.61,151.6,6.5927]
[1749215984112,2.73243715,151.61,151.6,6.5927]
[1749215984417,2.73224897,151.61,151.6,6.5927]
[1749215984717,2.74062826,151.61,151.6,6.5927]
[1749215984918,2.74067077,151.61,151.6,6.5927]
[1749215985913,2.74211721,151.61,151.6,6.5927]
[1749215986116,2.74211763,151.61,151.6,6.5927]
[1749215986615,2.74211763,151.61,151.59,6.6403425]
[1749215986824,0.04810293,151.62,151.59,6.6403425]
[1749215987114,2.74278867,151.61,151.59,6.6403425]
[1749215987320,0.04810293,151.62,151.6,6.5929]
[1749215987508,2.74273673,151.61,151.6,6.5929]
[1749215988816,2.74325979,151.61,151.6,6.5929]
[1749215989014,2.74325979,151.61,151.59,0.0472425]
[1749215989015,2.74325979,151.61,151.59,6.6403425]
[1749215989221,0.04810293,151.62,151.59,6.6403425]
[1749215989418,2.74328016,151.61,151.59,0.0472425]
[1749215989621,2.74328016,151.6,151.59,0.0472425]
[1749215990821,13.82503428,151.6,151.59,0.0472425]
[1749215991613,13.82815185,151.6,151.59,0.0472425]
[1749215992523,13.82840578,151.6,151.59,0.0472425]
[1749215992821,7.23550578,151.6,151.59,0.0472425]
[1749215993422,2.75267012,151.6,151.59,0.0472425]
[1749215993922,0.04810293,151.62,151.59,6.6405425]
[1749215994223,7.42704176,151.61,151.59,0.0472425]
[1749215994424,2.94185343,151.6,151.59,0.0472425]
[1749215994925,0.04810293,151.62,151.6,6.5928]
[1749215995124,2.9330072,151.61,151.59,0.0472425]
[1749215995425,2.93291542,151.6,151.59,0.0472425]
[1749215995927,2.93291542,151.6,151.59,6.6405425]
[1749215996126,2.93291113,151.6,151.59,0.0472425]
[1749215996321,0.04810293,151.62,151.6,6.5928]
[1749215996620,2.93258193,151.61,151.6,6.5928]
[1749215996825,2.93257743,151.61,151.59,0.0472425]
[1749215997025,6.64010293,151.62,151.59,0.0472425]
[1749215997026,2.93275471,151.6,151.59,0.0472425]
[1749215997228,2.93275528,151.6,151.59,0.0472425]
[1749215997919,2.93287362,151.6,151.59,0.0472425]
[1749215998117,7.4163001,151.6,151.54,33.42]
[1749215998425,2.93304969,151.59,151.56,6.5945]
[1749215998621,6.5932,151.6,151.56,6.5945]
[1749215998829,4.48348005,151.59,151.56,6.5945]
[1749215999027,2.93306692,151.58,151.56,6.5945]
[1749215999229,2.93306692,151.57,151.56,6.6434762]
[1749216000128,2.93606953,151.57,151.56,6.6434762]
[1749216001726,0.04818092,151.59,151.56,6.6434762]
[1749216001727,6.64148092,151.59,151.56,6.6434762]
[1749216001928,2.93801896,151.58,151.56,6.6434762]
[1749216002120,2.93801614,151.57,151.56,0.0489762]
[1749216002529,2.9380459,151.57,151.56,0.0489762]
[1749216003128,7.41760783,151.57,151.51,41.57072453]
[1749216003330,6.5957,151.54,151.51,41.57072453]
[1749216003627,2.9374046,151.53,151.49,8.15072453]
[1749216003829,2.9373273,151.52,151.5,6.5969]
[1749216004033,6.5957,151.54,151.5,6.5969]
[1749216004034,2.9373273,151.51,151.5,6.5969]
[1749216004733,2.9372977,151.51,151.5,6.5969]
[1749216004932,0.04581844,151.53,151.51,6.5959]
[1749216005241,2.92902848,151.52,151.51,6.5959]
[1749216005430,2.92902365,151.52,151.51,6.5959]
[1749216005632,0.04581844,151.53,151.51,6.5959]
[1749216005831,2.92902407,151.52,151.51,6.5959]
[1749216006630,2.92808959,151.52,151.51,6.5959]
[1749216007237,2.92808395,151.52,151.51,6.5959]
[1749216007437,0.04581844,151.53,151.51,6.5959]
[1749216007636,2.92808395,151.52,151.51,6.5959]
[1749216008638,2.92585682,151.52,151.51,6.5959]
[1749216008832,0.04581844,151.53,151.51,6.5959]
[1749216009032,2.92585682,151.52,151.51,6.5959]
[1749216009633,0.04581844,151.53,151.52,6.5958]
[1749216009837,4.44239191,151.58,151.51,7.58133934]
[1749216010042,6.594,151.57,151.53,14.17633934]
[1749216010533,6.594,151.57,151.54,6.5949]
[1749216010835,6.64288636,151.57,151.54,6.64229607]
[1749216014438,6.5943,151.56,151.54,0.04739607]
[1749216014646,0.04888636,151.57,151.5,7.58133934]
[1749216014844,7.58133934,151.58,151.5,7.58133934]
[1749216015044,6.5954,151.54,151.5,14.17773934]
[1749216015245,33.4,151.55,151.48,41.00133934]
[1749216015448,2.1932,151.54,151.48,7.58133934]
[1749216015745,6.5965,151.51,151.49,0.04998958]
[1749216015945,6.5965,151.51,151.48,7.58133934]
[1749216015946,2.25457397,151.53,151.47,6.5976]
[1749216016346,6.5969,151.5,151.46,6.5983]
[1749216016544,33.4,151.51,151.43,1.14870441]
[1749216016748,33.4,151.51,151.43,7.58133934]
[1749216017046,6.5978,151.48,151.45,0.04175562]
[1749216017237,0.04758355,151.49,151.45,0.04175562]
[1749216017742,0.04758355,151.49,151.45,7.62309496]
[1749216017950,0.04758355,151.49,151.46,6.5983]
[1749216018448,0.04758355,151.49,151.45,7.62309496]
[1749216019148,0.04758355,151.49,151.46,6.5983]
[1749216019949,0.04758355,151.49,151.45,14.22179496]
[1749216020345,6.5979,151.48,151.45,0.04175562]
[1749216020547,0.04758355,151.49,151.45,7.62309496]
[1749216020744,0.04758355,151.49,151.47,7.58133934]
[1749216020947,0.04758355,151.49,151.48,6.5976]
[1749216022344,0.04758355,151.49,151.46,7.58133934]
[1749216022846,6.64498355,151.49,151.46,7.58133934]
[1749216024049,6.64498355,151.49,151.46,14.17963934]
[1749216024950,6.64498355,151.49,151.46,7.58133934]
[1749216025352,6.5976,151.48,151.46,7.58133934]
[1749216026551,6.64488355,151.49,151.46,14.17973934]
[1749216026745,0.04758355,151.49,151.46,7.58133934]
[1749216027349,6.64498355,151.49,151.46,14.17953934]
[1749216028353,6.5977,151.48,151.45,6.64045562]
[1749216029453,6.64498355,151.49,151.46,6.5984]
[1749216030053,6.5976,151.48,151.45,6.64045562]
[1749216030254,6.5976,151.48,151.45,14.22179496]
[1749216032654,6.5982,151.47,151.45,14.22179496]
[1749216032860,0.04758355,151.49,151.45,0.04175562]
[1749216033055,7.62892289,151.49,151.4,1.14898886]
[1749216033256,7.58133934,151.47,151.36,33.42]
[1749216033466,33.42,151.46,151.38,7.58133934]
[1749216033661,35.5626,151.46,151.38,7.58133934]
[1749216033851,35.5626,151.46,151.39,6.6014]
[1749216034049,35.5626,151.46,151.41,0.05021051]
[1749216034255,0.04372688,151.44,151.36,41.00133934]
[1749216034656,0.04372688,151.44,151.38,6.6019]
[1749216035265,0.04372688,151.44,151.39,0.04872981]
[1749216035660,2.9880194,151.43,151.39,0.04872981]
[1749216035856,0.04372688,151.44,151.41,6.6005]
[1749216036054,2.98801186,151.43,151.41,6.6005]
[1749216036257,6.64342688,151.44,151.4,6.601]
[1749216036460,2.98574233,151.43,151.4,6.601]
[1749216036656,6.64342688,151.44,151.4,6.601]
[1749216036858,9.58563786,151.43,151.4,6.601]
[1749216037162,0.04372688,151.44,151.39,6.65012981]
[1749216037363,2.98973396,151.43,151.39,6.65012981]
[1749216037663,7.62506622,151.44,151.39,6.65012981]
[1749216037866,9.59003888,151.43,151.39,6.65012981]
[1749216038062,6.6003,151.43,151.39,6.65012981]
[1749216038260,7.62506622,151.44,151.39,6.65012981]
[1749216038461,2.98958456,151.43,151.39,6.65012981]
[1749216038662,2.98975954,151.42,151.39,6.65012981]
[1749216038859,40.0006,151.42,151.39,0.04872981]
[1749216039365,40.0006,151.42,151.39,6.65032981]
[1749216040156,2.98650048,151.41,151.39,6.65032981]
[1749216040356,40.0006,151.42,151.39,6.65032981]
[1749216040357,2.98650048,151.4,151.39,6.65032981]
[1749216040561,43.26193934,151.42,151.34,7.58133934]
[1749216040761,2.96671826,151.41,151.36,7.58133934]
[1749216041068,35.6806,151.42,151.36,7.58133934]
[1749216041563,0.0435649,151.41,151.37,0.05020208]
[1749216042771,0.0435649,151.41,151.39,6.6013]
[1749216043168,0.0435649,151.41,151.37,0.05020208]
[1749216043169,0.0435649,151.41,151.4,6.6012]
[1749216045566,0.0435649,151.41,151.4,14.70872233]
[1749216046268,0.0435649,151.41,151.4,6.6012]
[1749216063788,2.1389,151.47,151.4,33.4]
[1749216063988,2.9850683,151.46,151.39,33.4]
[1749216064190,2.9850683,151.45,151.43,8.10752233]
[1749216064386,33.4,151.48,151.43,8.10752233]
[1749216064579,2.98505362,151.47,151.43,8.10752233]
[1749216064889,9.58395362,151.46,151.43,14.7495494]
[1749216065189,2.98505362,151.45,151.43,14.7495494]
[1749216065393,2.98570163,151.44,151.43,14.7495494]
[1749216065597,6.5989,151.46,151.43,14.7495494]
[1749216065795,2.98855883,151.45,151.43,14.7495494]
[1749216065996,6.5989,151.46,151.43,14.7495494]
[1749216067192,9.58742801,151.45,151.43,14.7495494]
[1749216067393,6.599,151.45,151.43,14.7495494]
[1749216067692,2.98975851,151.44,151.43,14.7495494]
[1749216067897,2.98980241,151.44,151.43,14.7495494]
[1749216068095,2.98978736,151.44,151.43,14.7495494]
[1749216068294,2.98978778,151.44,151.43,14.7495494]
[1749216069399,2.99050161,151.44,151.43,14.7495494]
[1749216069701,2.99050077,151.44,151.43,14.7495494]
[1749216070100,9.58990077,151.44,151.43,0.04232707]
[1749216070299,2.99050077,151.44,151.43,0.04232707]
[1749216071796,2.99771693,151.44,151.43,0.04232707]
[1749216072406,2.99771693,151.44,151.43,6.64222707]
[1749216072702,2.9983738,151.44,151.43,0.04232707]
[1749216072899,6.5992,151.45,151.43,0.04232707]
[1749216073296,2.9985738,151.44,151.43,0.04232707]
[1749216073501,2.9985445,151.44,151.43,0.04232707]
[1749216073804,6.5992,151.45,151.43,0.04232707]
[1749216074005,2.9985445,151.44,151.43,0.04232707]
[1749216074198,2.9985445,151.44,151.43,6.64222707]
[1749216074701,2.99863596,151.44,151.43,6.64222707]
[1749216074899,2.99863596,151.44,151.43,0.04232707]
[1749216075103,2.99871943,151.44,151.43,0.04232707]
[1749216076104,10.18302233,151.46,151.39,33.4]
[1749216076304,2.99760267,151.45,151.39,33.4]
[1749216076506,6.6005,151.42,151.39,40.0014]
[1749216076706,2.99755936,151.41,151.39,33.4]
[1749216076900,2.0755,151.46,151.4,8.10752233]
[1749216077107,9.64286119,151.45,151.41,0.04185848]
[1749216077307,2.9986775,151.44,151.41,0.04185848]
[1749216077508,2.9986775,151.43,151.42,6.6001]
[1749216077999,2.9986775,151.43,151.41,6.64235848]
[1749216078204,0.04498369,151.45,151.41,0.04185848]
[1749216078406,2.99880743,151.44,151.41,0.04185848]
[1749216078602,2.99898386,151.43,151.41,0.04185848]
[1749216078803,6.6001,151.43,151.41,0.04185848]
[1749216078999,2.99886709,151.42,151.41,0.04185848]
[1749216079402,9.59916709,151.42,151.41,0.04185848]
[1749216080409,9.59385121,151.42,151.41,0.04185848]
[1749216081110,0.04498369,151.45,151.41,0.04185848]
[1749216081315,2.99288698,151.44,151.42,8.10752233]
[1749216081511,2.9928847,151.43,151.42,8.10752233]
[1749216081811,2.9928847,151.43,151.41,0.04185848]
[1749216082016,2.9928847,151.42,151.41,0.04185848]
[1749216082504,0.04498369,151.45,151.41,0.04185848]
[1749216082704,6.6003,151.42,151.41,0.04185848]
[1749216082910,9.59357211,151.42,151.41,0.04185848]
[1749216083802,6.6003,151.42,151.41,0.04185848]
[1749216084003,9.59377805,151.42,151.41,0.04185848]
[1749216084203,9.59373404,151.42,151.41,0.04185848]
[1749216084710,9.59976387,151.42,151.41,0.04185848]
[1749216085410,9.60136621,151.42,151.41,0.04185848]
[1749216085610,6.6003,151.42,151.41,0.04185848]
[1749216086212,9.60136678,151.42,151.41,0.04185848]
[1749216086612,9.60130756,151.42,151.41,0.04185848]
[1749216087412,9.60253606,151.42,151.41,0.04185848]
[1749216088014,9.60256681,151.42,151.41,0.04185848]
[1749216089011,6.6003,151.42,151.41,0.04185848]
[1749216089208,9.60273113,151.42,151.41,0.04185848]
[1749216089419,9.60310869,151.42,151.41,0.04185848]
[1749216089617,9.60310812,151.42,151.41,0.04185848]
[1749216089918,9.60360929,151.42,151.41,0.04185848]
[1749216090112,3.00330929,151.42,151.36,49.63824686]
[1749216090317,3.00330929,151.41,151.36,41.48752233]
[1749216090514,3.00330929,151.4,151.36,41.48752233]
[1749216090719,3.00330929,151.39,151.36,41.48752233]
[1749216090919,3.00330929,151.38,151.36,41.48752233]
[1749216091113,2.99502064,151.37,151.36,41.48752233]
[1749216091321,6.65127316,151.39,151.36,48.09022233]
[1749216091519,2.99474714,151.38,151.36,48.09022233]
[1749216091720,2.99470136,151.37,151.36,48.09022233]
[1749216092724,0.04947316,151.39,151.37,6.6026]
[1749216092922,2.99456683,151.38,151.37,6.6026]
[1749216093317,2.99426089,151.38,151.37,6.6026]
[1749216093920,0.04947316,151.39,151.38,6.6022]
[1749216094121,0.04947316,151.39,151.38,14.70972233]
[1749216095419,35.5425,151.47,151.38,16.29877233]
[1749216095626,2.98597747,151.46,151.44,8.10752233]
[1749216095816,2.98597747,151.45,151.44,8.10752233]
[1749216096125,2.98642115,151.45,151.44,8.10752233]
[1749216096326,2.98627486,151.45,151.44,8.10752233]
[1749216096528,2.98627843,151.45,151.44,14.70692233]
[1749216097424,0.04408993,151.46,151.44,14.70692233]
[1749216097622,2.98541912,151.45,151.43,14.75222063]
[1749216097923,2.98541912,151.44,151.43,14.75222063]
[1749216098222,2.98542393,151.44,151.43,14.75222063]
[1749216099429,2.98542393,151.44,151.43,8.15252063]
[1749216099728,6.599,151.45,151.43,8.15252063]
[1749216099928,2.99982847,151.44,151.43,8.15252063]
[1749216100132,2.99982733,151.44,151.43,8.15252063]
[1749216100322,2.9998279,151.44,151.43,8.15252063]
[1749216100628,6.599,151.45,151.43,8.15252063]
[1749216100828,2.99982733,151.44,151.43,8.15252063]
[1749216101024,9.59922733,151.44,151.43,0.0449983]
[1749216101728,9.59991092,151.44,151.43,0.0449983]
[1749216102427,6.6007,151.41,151.4,33.36]
[1749216102627,9.60150076,151.41,151.38,6.6017]
[1749216102833,10.37932233,151.45,151.38,14.70922233]
[1749216103033,10.37932233,151.45,151.37,33.36]
[1749216103234,5.17027632,151.44,151.37,48.06982233]
[1749216103535,6.601,151.41,151.37,48.06982233]
[1749216103733,3.00117632,151.4,151.37,48.06982233]
[1749216103928,3.00117632,151.39,151.38,6.602]
[1749216104129,3.00117632,151.39,151.37,41.46752233]
[1749216104326,6.6012,151.4,151.37,41.46752233]
[1749216104526,3.00079141,151.39,151.37,48.06972233]
[1749216104730,3.00088036,151.38,151.37,48.06972233]
[1749216104932,2.99511447,151.38,151.37,48.06972233]
[1749216105338,6.6012,151.4,151.37,48.06972233]
[1749216105631,6.6012,151.4,151.37,39.9622]
[1749216105832,2.99431325,151.39,151.37,33.36]
[1749216106033,2.99431325,151.38,151.37,33.36]
[1749216106239,2.99452934,151.38,151.35,8.10752233]
[1749216106543,2.99452934,151.37,151.36,6.6027]
[1749216106838,2.99406142,151.37,151.35,8.10752233]
[1749216107032,0.04985046,151.38,151.35,14.71052233]
[1749216107240,0.04985046,151.38,151.35,8.10752233]
[1749216107737,0.04985046,151.38,151.36,6.6026]
[1749216107938,2.99398518,151.37,151.35,8.10752233]
[1749216108238,0.04985046,151.38,151.35,8.10752233]
[1749216108439,2.99364752,151.37,151.36,6.6029]
[1749216108639,0.04985046,151.38,151.35,8.10752233]
[1749216108840,0.04985046,151.38,151.34,33.36]
[1749216109042,0.04985046,151.38,151.35,8.10752233]
[1749216109341,0.04985046,151.38,151.37,6.6025]
[1749216109542,3.04219235,151.38,151.37,14.71002233]
[1749216109743,3.04210155,151.38,151.37,14.71002233]
[1749216110242,0.04985046,151.38,151.37,14.71002233]
[1749216115439,8.10752233,151.47,151.37,8.10752233]
[1749216115640,2.97860772,151.44,151.41,8.10752233]
[1749216115944,2.97860772,151.43,151.41,8.10752233]
[1749216116143,6.5989,151.46,151.42,6.6]
[1749216116339,2.97861491,151.45,151.41,8.10752233]
[1749216116545,6.6,151.43,151.42,0.04300775]
[1749216116841,2.97861491,151.45,151.42,0.04300775]
[1749216117034,2.97861491,151.44,151.42,0.04300775]
[1749216117237,2.97861491,151.43,151.42,0.04300775]
[1749216117731,2.97865474,151.43,151.42,0.04300775]
[1749216117934,6.5998,151.44,151.42,0.04300775]
[1749216118133,6.6,151.43,151.42,0.04300775]
[1749216118439,9.5788792,151.43,151.42,0.04300775]
[1749216118838,11.08704846,151.43,151.38,33.36]
[1749216119040,2.97952613,151.42,151.38,33.36]
[1749216119240,2.97952613,151.41,151.36,8.10752233]
[1749216119440,2.97980811,151.4,151.36,8.10752233]